fUSD/lending_fUSD_20241216
["ID","MTS","AMOUNT","RATE_DAILY","PERIOD"]
[345580197,1734369035720,-500.0,0.00024798,4]
[345580198,1734369035730,-500.0,0.00024798,4]
[345580199,1734369035742,-500.0,0.00024798,4]
[345580200,1734369035752,-500.0,0.00024798,4]
[345580201,1734369035765,-500.0,0.00024798,4]
[345580202,1734369035774,-500.0,0.00024798,4]
[345580203,1734369035783,-500.0,0.00024798,4]
[345580204,1734369035793,-500.0,0.00024798,4]
[345580205,1734369035802,-500.0,0.00024798,4]
[345580206,1734369035812,-536.62,0.00024798,4]
[345580207,1734369035822,-500.0,0.00024798,4]
[345580208,1734369035831,-500.0,0.00024798,4]
[345580209,1734369035841,-500.0,0.00024798,4]
[345580210,1734369035850,-2229.84,0.00024798,4]
[345580211,1734369035860,-500.0,0.00024798,4]
[345580212,1734369035869,-500.8290296,0.00024798,4]
[345580213,1734369035878,-546.63,0.00024798,4]
[345580214,1734369035887,-500.0,0.00024798,4]
[345580215,1734369035896,-500.0,0.00024798,4]
[345580216,1734369035905,-500.0,0.00024798,4]
[345580217,1734369035915,-500.0,0.00024798,4]
[345580218,1734369035925,-500.0,0.00024798,4]
[345580219,1734369035934,-500.0,0.00024798,4]
[345580220,1734369035944,-500.0,0.00024798,4]
[345580221,1734369035953,-500.0,0.00024798,4]
[345580222,1734369035962,-500.0,0.00024798,4]
[345580223,1734369035973,-500.0,0.00024798,4]
[345580224,1734369035982,-500.0,0.00024798,4]
[345580225,1734369035994,-500.0,0.00024798,4]
[345580226,1734369036004,-500.0,0.00024798,4]
[345580227,1734369036018,-500.0,0.00024798,4]
[345580228,1734369036028,-500.0,0.00024798,4]
[345580229,1734369036037,-500.0,0.00024798,4]
[345580230,1734369036046,-500.0,0.00024798,4]
[345580231,1734369036059,-500.0,0.00024798,4]
[345580232,1734369036201,-500.0,0.00024798,4]
[345580233,1734369036212,-500.0,0.00024798,4]
[345580234,1734369036222,-519.07,0.00024798,4]
[345580235,1734369036231,-500.0,0.00024798,4]
[345580236,1734369036245,-501.6026763,0.00024798,4]
[345580237,1734369036254,-500.0,0.00024798,4]
[345580238,1734369036263,-500.0,0.00024798,4]
[345580239,1734369036273,-500.0,0.00024798,4]
[345580240,1734369036283,-500.0,0.00024798,4]
[345580241,1734369036293,-500.0,0.00024798,4]
[345580242,1734369036302,-500.0,0.00024798,4]
[345580243,1734369036312,-500.0,0.00024798,4]
[345580244,1734369036322,-500.0,0.00024798,4]
[345580245,1734369036331,-500.0,0.00024798,4]
[345580246,1734369036341,-374.58878221,0.00024798,4]
[345580247,1734369036360,-128.18566067,0.00024798,4]
[345580248,1734369036369,-500.0,0.00024798,4]
[345580249,1734369036382,-12.67433933,0.00024798,4]
[345580250,1734369036394,-487.32566067,0.00024798,4]
[345580251,1734369036403,-277.77433893,0.00024798,4]
[345580252,1734369036417,-222.22566107,0.00024798,4]
[345580253,1734369036426,-500.0,0.00024798,4]
[345580254,1734369036436,-113.77433893,0.00024798,4]
[345580255,1734369036452,-500.0,0.00024797,4]
[345580256,1734369036462,-310.97479043,0.00024798,4]
[345580265,1734369038269,-3000.0,0.0002475,2]
[345580266,1734369038279,-500.0,0.00024773,2]
[345580267,1734369038289,-75.25087064,0.00024798,4]
[345580268,1734369038298,-500.0,0.00024798,4]
[345580269,1734369038308,-1551.34,0.00024798,4]
[345580270,1734369038319,-500.0,0.00024798,4]
[345580271,1734369038329,-500.0,0.00024798,4]
[345580272,1734369038339,-500.0,0.00024798,4]
[345580273,1734369038349,-500.0,0.00024798,4]
[345580274,1734369038359,-500.0,0.00024798,4]
[345580275,1734369038368,-500.0,0.00024798,4]
[345580276,1734369038378,-500.0,0.00024798,4]
[345580277,1734369038389,-500.0,0.00024798,4]
[345580278,1734369038399,-500.0,0.00024798,4]
[345580279,1734369038408,-500.0,0.00024798,4]
[345580280,1734369038418,-500.0,0.00024798,4]
[345580281,1734369038428,-500.0,0.00024798,4]
[345580282,1734369038439,-500.0,0.00024798,4]
[345580283,1734369038450,-500.0,0.00024798,4]
[345580284,1734369038459,-500.0,0.00024798,4]
[345580285,1734369038471,-150.12145301,0.00024798,4]
[345580286,1734369038480,-500.0,0.00024798,4]
[345580287,1734369038491,-500.0,0.00024798,4]
[345580288,1734369038506,-500.0,0.00024798,4]
[345580289,1734369038516,-500.0,0.00024798,4]
[345580290,1734369038526,-500.0,0.00024798,4]
[345580291,1734369038535,-500.0,0.00024798,4]
[345580292,1734369038544,-500.0,0.00024798,4]
[345580293,1734369038553,-500.0,0.00024798,4]
[345580294,1734369038563,-500.0,0.00024798,4]
[345580295,1734369038573,-500.0,0.00024798,4]
[345580296,1734369038583,-500.0,0.00024798,4]
[345580297,1734369038592,-500.0,0.00024798,4]
[345580298,1734369038602,-500.0,0.00024798,4]
[345580299,1734369038611,-500.0,0.00024798,4]
[345580300,1734369038622,-500.0,0.00024798,4]
[345580301,1734369038631,-314.94347861,0.00024798,4]
[345580302,1734369038644,-185.05652139,0.00024798,4]
[345580303,1734369038658,-500.0,0.00024798,4]
[345580304,1734369038668,-500.0,0.00024798,4]
[345580305,1734369038678,-500.0,0.00024798,2]
[345580306,1734369038688,-500.0,0.00024798,4]
[345580307,1734369038697,-500.0,0.00024798,4]
[345580308,1734369038708,-500.0,0.00024798,4]
[345580309,1734369038717,-500.0,0.00024798,4]
[345580310,1734369038727,-500.0,0.00024798,4]
[345580311,1734369038737,-500.0,0.00024798,4]
[345580312,1734369038755,-500.0,0.00024798,4]
[345580313,1734369038766,-500.0,0.00024798,4]
[345580314,1734369038776,-500.0,0.00024798,4]
[345580315,1734369038785,-500.0,0.00024798,4]
[345580316,1734369038796,-500.0,0.00024798,4]
[345580317,1734369038805,-500.0,0.00024798,4]
[345580318,1734369038815,-500.0,0.00024798,4]
[345580319,1734369038825,-500.0,0.00024798,4]
[345580320,1734369038834,-500.0,0.00024798,4]
[345580322,1734369038844,-500.0,0.00024798,4]
[345580324,1734369038854,-500.0,0.00024798,4]
[345580326,1734369038863,-500.0,0.00024798,4]
[345580328,1734369038873,-500.0,0.00024798,4]
[345580330,1734369038882,-500.0,0.00024798,4]
[345580332,1734369038892,-500.0,0.00024798,4]
[345580334,1734369038902,-500.0,0.00024798,4]
[345580336,1734369038911,-500.0,0.00024798,4]
[345580337,1734369038921,-500.0,0.00024798,4]
[345580338,1734369038931,-500.0,0.00024798,4]
[345580339,1734369038941,-500.0,0.00024798,4]
[345580340,1734369038951,-500.0,0.00024798,4]
[345580341,1734369038962,-500.0,0.00024798,4]
[345580342,1734369038972,-500.0,0.00024798,4]
[345580343,1734369038982,-500.0,0.00024798,4]
[345580344,1734369038996,-500.0,0.00024798,4]
[345580345,1734369039006,-500.0,0.00024798,4]
[345580346,1734369039020,-500.0,0.00024798,4]
[345580347,1734369039030,-500.0,0.00024798,4]
[345580348,1734369039039,-500.0,0.00024798,4]
[345580349,1734369039049,-500.0,0.00024798,4]
[345580350,1734369039059,-500.0,0.00024798,4]
[345580351,1734369039069,-500.0,0.00024798,4]
[345580352,1734369039079,-500.0,0.00024798,4]
[345580353,1734369039091,-500.0,0.00024798,4]
[345580354,1734369039101,-500.0,0.00024798,4]
[345580355,1734369039111,-500.0,0.00024798,4]
[345580356,1734369039120,-500.0,0.00024798,4]
[345580357,1734369039130,-500.0,0.00024798,4]
[345580358,1734369039140,-500.0,0.00024798,4]
[345580359,1734369039150,-500.0,0.00024798,4]
[345580360,1734369039160,-500.0,0.00024798,4]
[345580361,1734369039170,-90.53059861,0.00024798,4]
[345580362,1734369039209,-60.59845439,0.00024798,4]
[345580363,1734369039219,-500.0,0.00024798,4]
[345580364,1734369039228,-500.0,0.00024798,4]
[345580365,1734369039239,-500.0,0.00024798,4]
[345580366,1734369039254,-419.48535249,0.00024798,4]
[345580367,1734369039264,-500.0,0.00024798,4]
[345580368,1734369039274,-500.0,0.00024798,4]
[345580369,1734369039284,-500.0,0.00024798,4]
[345580370,1734369039294,-500.0,0.00024798,4]
[345580371,1734369039304,-4184.02,0.00024798,4]
[345580372,1734369039313,-500.0,0.00024798,4]
[345580373,1734369039323,-500.0,0.00024798,4]
[345580374,1734369039332,-500.0,0.00024798,4]
[345580375,1734369039342,-500.0,0.00024798,4]
[345580376,1734369039357,-500.0,0.00024798,4]
[345580377,1734369039367,-500.0,0.00024798,4]
[345580378,1734369039378,-500.0,0.00024798,4]
[345580379,1734369039388,-500.0,0.00024798,4]
[345580380,1734369039398,-500.0,0.00024798,4]
[345580381,1734369039407,-500.0,0.00024798,4]
[345580382,1734369039417,-500.0,0.00024798,4]
[345580383,1734369039426,-500.0,0.00024798,4]
[345580384,1734369039435,-500.0,0.00024798,4]
[345580385,1734369039445,-500.0,0.00024798,4]
[345580386,1734369039454,-500.0,0.00024798,4]
[345580387,1734369039463,-500.0,0.00024798,4]
[345580388,1734369039473,-500.0,0.00024798,4]
[345580389,1734369039483,-500.0,0.00024798,4]
[345580390,1734369039494,-500.0,0.00024798,4]
[345580391,1734369039503,-500.0,0.00024798,4]
[345580392,1734369039513,-500.0,0.00024798,4]
[345580393,1734369039522,-500.0,0.00024798,4]
[345580394,1734369039531,-500.0,0.00024798,4]
[345580395,1734369039541,-500.0,0.00024798,4]
[345580396,1734369039551,-1478.67,0.00024798,4]
[345580397,1734369039560,-500.0,0.00024798,4]
[345580398,1734369039570,-500.0,0.00024798,4]
[345580399,1734369039579,-500.0,0.00024798,4]
[345580400,1734369039589,-500.0,0.00024798,4]
[345580401,1734369039598,-500.0,0.00024798,4]
[345580402,1734369039607,-500.0,0.00024798,4]
[345580403,1734369039617,-500.0,0.00024798,4]
[345580404,1734369039626,-500.0,0.00024798,4]
[345580405,1734369039636,-500.0,0.00024798,4]
[345580406,1734369039645,-500.0,0.00024798,4]
[345580407,1734369039657,-500.0,0.00024798,4]
[345580408,1734369039667,-500.0,0.00024798,4]
[345580409,1734369039677,-500.0,0.00024798,4]
[345580410,1734369039688,-500.0,0.00024798,4]
[345580411,1734369039697,-500.0,0.00024798,4]
[345580412,1734369039706,-500.0,0.00024798,4]
[345580413,1734369039715,-500.0,0.00024798,4]
[345580414,1734369039725,-500.0,0.00024798,4]
[345580415,1734369039734,-500.0,0.00024798,4]
[345580416,1734369039747,-500.0,0.00024798,4]
[345580417,1734369039758,-500.0,0.00024798,4]
[345580418,1734369039767,-500.0,0.00024798,4]
[345580419,1734369039777,-500.0,0.00024798,4]
[345580420,1734369039787,-155.6389608,0.00024798,2]
[345580421,1734369039796,-500.0,0.00024798,4]
[345580422,1734369039806,-500.0,0.00024798,4]
[345580423,1734369039817,-500.0,0.00024798,4]
[345580424,1734369039826,-500.0,0.00024798,4]
[345580425,1734369039835,-500.0,0.00024798,4]
[345580426,1734369039845,-487.48922593,0.00024798,4]
[345580427,1734369039855,-245.56,0.00024798,4]
[345580428,1734369039864,-500.0,0.00024798,4]
[345580429,1734369039875,-500.0,0.00024798,4]
[345580430,1734369039997,-500.0,0.00024798,4]
[345580431,1734369040009,-500.0,0.00024798,4]
[345580432,1734369040019,-500.0,0.00024798,4]
[345580433,1734369040028,-500.0,0.00024798,4]
[345580434,1734369040038,-500.0,0.00024798,4]
[345580435,1734369040047,-500.0,0.00024798,4]
[345580436,1734369040058,-500.0,0.00024798,4]
[345580437,1734369040067,-500.0,0.00024798,4]
[345580438,1734369040077,-500.0,0.00024798,4]
[345580439,1734369040087,-500.0,0.00024798,4]
[345580440,1734369040096,-345.3981849,0.00024798,4]
[345580441,1734369040105,-500.0,0.00024798,4]
[345580442,1734369040114,-500.0,0.00024798,4]
[345580443,1734369040124,-500.0,0.00024798,4]
[345580444,1734369040133,-500.0,0.00024798,4]
[345580445,1734369040142,-500.0,0.00024798,4]
[345580447,1734369040152,-500.0,0.00024798,4]
[345580448,1734369040162,-500.0,0.00024798,4]
[345580449,1734369040171,-500.0,0.00024798,4]
[345580450,1734369040182,-500.0,0.00024798,4]
[345580451,1734369040191,-500.0,0.00024798,4]
[345580452,1734369040201,-500.0,0.00024798,4]
[345580453,1734369040210,-4616.59,0.00024798,4]
[345580454,1734369040220,-500.0,0.00024798,4]
[345580455,1734369040231,-500.0,0.00024798,4]
[345580456,1734369040241,-500.0,0.00024798,4]
[345580457,1734369040251,-500.0,0.00024798,4]
[345580458,1734369040260,-1200.95,0.00024798,4]
[345580459,1734369040270,-500.0,0.00024798,4]
[345580460,1734369040279,-500.0,0.00024798,4]
[345580461,1734369040289,-500.0,0.00024798,4]
[345580462,1734369040299,-673.91,0.00024798,4]
[345580463,1734369040308,-3224.12,0.00024798,4]
[345580464,1734369040318,-673.91,0.00024798,4]
[345580465,1734369040328,-500.0,0.00024798,4]
[345580466,1734369040338,-500.0,0.00024798,4]
[345580467,1734369040349,-500.0,0.00024798,4]
[345580468,1734369040359,-500.0,0.00024798,4]
[345580469,1734369040368,-500.0,0.00024798,4]
[345580470,1734369040377,-500.0,0.00024798,4]
[345580471,1734369040387,-500.0,0.00024798,4]
[345580472,1734369040398,-500.0,0.00024798,4]
[345580473,1734369040407,-500.0,0.00024798,4]
[345580474,1734369040416,-4916.26,0.00024798,4]
[345580475,1734369040425,-500.0,0.00024798,4]
[345580476,1734369040434,-1163.3,0.00024798,4]
[345580477,1734369040443,-500.0,0.00024798,4]
[345580478,1734369040452,-500.0,0.00024798,4]
[345580479,1734369040462,-500.0,0.00024798,4]
[345580480,1734369040471,-612.49422269,0.00024798,4]
[345580481,1734369040481,-500.0,0.00024798,4]
[345580482,1734369040490,-500.0,0.00024798,4]
[345580483,1734369040501,-500.0,0.00024798,4]
[345580484,1734369040510,-500.0,0.00024798,4]
[345580485,1734369040519,-595.59,0.00024798,4]
[345580486,1734369040529,-500.0,0.00024798,4]
[345580487,1734369040539,-500.0,0.00024798,4]
[345580488,1734369040549,-500.0,0.00024798,4]
[345580489,1734369040559,-500.0,0.00024798,4]
[345580490,1734369040571,-276.07512784,0.00024798,4]
[345580491,1734369040581,-500.0,0.00024798,4]
[345580492,1734369040591,-500.0,0.00024798,4]
[345580493,1734369040600,-500.0,0.00024798,4]
[345580494,1734369040609,-500.0,0.00024798,4]
[345580495,1734369040618,-500.0,0.00024798,4]
[345580496,1734369040628,-500.0,0.00024798,4]
[345580497,1734369040639,-500.0,0.00024798,4]
[345580498,1734369040649,-500.0,0.00024798,4]
[345580499,1734369040659,-500.0,0.00024798,4]
[345580500,1734369040668,-500.0,0.00024798,4]
[345580501,1734369040677,-500.0,0.00024798,4]
[345580502,1734369040687,-500.0,0.00024798,4]
[345580503,1734369040696,-500.0,0.00024798,4]
[345580504,1734369040705,-500.0,0.00024798,4]
[345580505,1734369040714,-500.0,0.00024798,4]
[345580506,1734369040723,-500.0,0.00024798,4]
[345580507,1734369040732,-12617.98,0.00024798,4]
[345580508,1734369040741,-500.0,0.00024798,4]
[345580509,1734369040751,-500.0,0.00024798,4]
[345580510,1734369040760,-500.0,0.00024798,4]
[345580511,1734369040769,-640.25415128,0.00024798,4]
[345580512,1734369040779,-500.0,0.00024798,4]
[345580513,1734369040788,-500.0,0.00024798,4]
[345580514,1734369040797,-500.0,0.00024798,4]
[345580515,1734369040806,-500.0,0.00024798,4]
[345580516,1734369040816,-500.0,0.00024798,4]
[345580518,1734369040824,-500.0,0.00024798,4]
[345580520,1734369040834,-500.0,0.00024798,4]
[345580522,1734369040843,-500.0,0.00024798,4]
[345580525,1734369040852,-500.0,0.00024798,4]
[345580528,1734369040862,-500.0,0.00024798,4]
[345580531,1734369040871,-500.0,0.00024798,4]
[345580534,1734369040881,-500.0,0.00024798,4]
[345580538,1734369040890,-500.0,0.00024798,4]
[345580542,1734369040900,-500.0,0.00024798,4]
[345580546,1734369040909,-500.0,0.00024798,4]
[345580549,1734369040918,-500.0,0.00024798,4]
[345580552,1734369040927,-500.0,0.00024798,4]
[345580555,1734369040936,-500.0,0.00024798,4]
[345580558,1734369040945,-500.36964477,0.00024798,4]
[345580561,1734369040954,-500.0,0.00024798,4]
[345580564,1734369040964,-500.0,0.00024798,4]
[345580567,1734369040972,-2544.45,0.00024798,4]
[345580570,1734369040981,-500.0,0.00024798,4]
[345580572,1734369040991,-500.0,0.00024798,4]
[345580573,1734369041001,-500.0,0.00024798,4]
[345580575,1734369041012,-1249.23,0.00024798,4]
[345580577,1734369041024,-500.0,0.00024798,4]
[345580579,1734369041035,-500.0,0.00024798,4]
[345580581,1734369041043,-500.85945766,0.00024798,4]
[345580583,1734369041052,-518.39926526,0.00024798,4]
[345580585,1734369041062,-500.0,0.00024798,4]
[345580587,1734369041071,-500.0,0.00024798,4]
[345580589,1734369041080,-500.0,0.00024798,4]
[345580591,1734369041090,-500.0,0.00024798,4]
[345580593,1734369041099,-500.0,0.00024798,4]
[345580595,1734369041109,-501.16490765,0.00024798,4]
[345580597,1734369041118,-1236.57,0.00024798,2]
[345580598,1734369041127,-500.0,0.00024798,4]
[345580600,1734369041136,-500.0,0.00024798,4]
[345580602,1734369041145,-500.0,0.00024798,4]
[345580604,1734369041154,-500.0,0.00024798,4]
[345580606,1734369041163,-500.0,0.00024798,4]
[345580608,1734369041173,-500.0,0.00024798,4]
[345580610,1734369041183,-1669.18,0.00024798,4]
[345580612,1734369041193,-500.0,0.00024798,4]
[345580614,1734369041202,-500.0,0.00024798,4]
[345580616,1734369041211,-286.9603543,0.00024798,4]
[345580618,1734369041220,-500.0,0.00024798,4]
[345580620,1734369041230,-500.0,0.00024798,4]
[345580622,1734369041239,-500.0,0.00024798,4]
[345580624,1734369041250,-500.61424457,0.00024798,4]
[345580626,1734369041259,-500.0,0.00024798,4]
[345580628,1734369041268,-500.0,0.00024798,4]
[345580630,1734369041278,-502.37391971,0.00024798,4]
[345580632,1734369041287,-500.0,0.00024798,4]
[345580634,1734369041297,-500.0,0.00024798,4]
[345580636,1734369041306,-500.0,0.00024798,4]
[345580638,1734369041316,-366300.48125398,0.00024798,2]
[345580640,1734369041326,-154.05,0.00024799,4]
[345580642,1734369041335,-297.74,0.00024799,4]
[345580644,1734369041344,-500.0,0.00024799,4]
[345580646,1734369041353,-500.0,0.00024799,4]
[345580648,1734369041363,-4616.59,0.00024799,4]
[345580650,1734369041372,-3224.12,0.00024799,4]
[345580652,1734369041380,-4916.26,0.00024799,4]
[345580654,1734369041390,-184.24,0.00024799,4]
[345580656,1734369041399,-500.0,0.00024799,4]
[345580658,1734369041408,-12617.98,0.00024799,4]
[345580660,1734369041417,-500.0,0.00024799,4]
[345580662,1734369041426,-500.0,0.00024799,4]
[345580664,1734369041437,-500.0,0.00024799,4]
[345580666,1734369041446,-516.79,0.00024799,4]
[345580668,1734369041455,-1249.23,0.00024799,4]
[345580670,1734369041464,-500.0,0.00024799,4]
[345580672,1734369041473,-1550.4943,0.000248,2]
[345580674,1734369041483,-1000.0,0.000248,2]
[345580676,1734369041493,-206.48,0.000248,2]
[345580678,1734369041503,-150.0,0.000248,2]
[345580680,1734369041512,-500.0,0.000248,2]
[345580681,1734369041521,-18562.68593682,0.000248,2]
[345580682,1734369041530,-1500.0,0.00024801,2]
[345580683,1734369041539,-150.0,0.00024802,2]
[345580684,1734369041547,-150.0,0.00024803,2]
[345580685,1734369041556,-150.0,0.00024806,2]
[345580686,1734369041565,-150.0,0.00024806,2]
[345580687,1734369041575,-150.0,0.00024807,2]
[345580688,1734369041583,-155.6389608,0.00024809,2]
[345580689,1734369041592,-150.0,0.00024814,2]
[345580690,1734369041601,-150.0,0.00024817,2]
[345580691,1734369041610,-150.0,0.00024818,2]
[345580692,1734369041619,-150.0,0.00024819,2]
[345580693,1734369041627,-155.6389608,0.0002482,2]
[345580694,1734369041636,-150.0,0.00024822,2]
[345580695,1734369041646,-49082.87289589,0.00024825,10]
[345580696,1734369041655,-150.0,0.00024826,2]
[345580697,1734369041664,-277.11514414,0.00024826,2]
[345580699,1734369041673,-150.0,0.00024827,2]
[345580701,1734369041682,-150.0,0.00024829,2]
[345580703,1734369041691,-4009.29051648,0.00024831,10]
[345580705,1734369041700,-155.6389608,0.00024832,2]
[345580707,1734369041709,-222.026907,0.00024832,10]
[345580709,1734369041718,-16812.66198183,0.00024834,10]
[345580711,1734369041727,-49082.87289589,0.00024837,10]
[345580713,1734369041736,-49082.87289589,0.00024839,10]
[345580715,1734369041747,-222.026907,0.0002484,10]
[345580717,1734369041756,-150.0,0.00024841,2]
[345580719,1734369041765,-16812.66198183,0.00024841,10]
[345580721,1734369041775,-155.6389608,0.00024843,2]
[345580723,1734369041784,-222.026907,0.00024844,10]
[345580725,1734369041793,-150.0,0.00024845,2]
[345580727,1734369041803,-2390.97052718,0.00024846,10]
[345580729,1734369041812,-49082.87289589,0.00024849,10]
[345580741,1734369041918,-150.0,0.0002485,2]
[345580744,1734369041929,-150.0,0.0002485,2]
[345580745,1734369041938,-3263.63287108,0.0002485,10]
[345580746,1734369041947,-150.0,0.00024851,2]
[345580747,1734369041957,-4009.29051648,0.00024851,10]
[345580748,1734369041966,-49082.87289589,0.00024852,10]
[345580749,1734369041975,-150.0,0.00024852,2]
[345580750,1734369041984,-150.0,0.00024853,2]
[345580751,1734369041993,-16812.66198183,0.00024853,10]
[345580752,1734369042007,-150.0,0.00024854,2]
[345580753,1734369042020,-155.6389608,0.00024854,2]
[345580754,1734369042030,-1500.0,0.00024858,2]
[345580755,1734369042039,-4009.29051648,0.00024858,10]
[345580756,1734369042048,-175.26160334,0.0002486,2]
[345580757,1734369042058,-3263.63287108,0.00024863,10]
[345580758,1734369042068,-2390.97052718,0.00024864,10]
[345580759,1734369042077,-4009.29051648,0.00024865,10]
[345580760,1734369042087,-155.6389608,0.00024865,2]
[345580761,1734369042097,-3263.63287108,0.00024865,10]
[345580762,1734369042106,-16812.66198183,0.00024866,10]
[345580763,1734369042115,-2390.97052718,0.00024868,10]
[345580764,1734369042124,-4009.29051648,0.00024868,10]
[345580765,1734369042134,-3263.63287108,0.0002487,10]
[345580766,1734369042143,-150.0,0.00024871,2]
[345580767,1734369042152,-150.0,0.00024872,2]
[345580768,1734369042161,-2390.97052718,0.00024872,10]
[345580769,1734369042170,-300.0,0.00024873,2]
[345580770,1734369042180,-150.0,0.00024873,2]
[345580771,1734369042189,-150.0,0.00024874,2]
[345580772,1734369042198,-200.1666805,0.00024875,2]
[345580773,1734369042207,-150.0,0.00024876,2]
[345580774,1734369042216,-2390.97052718,0.00024876,10]
[345580775,1734369042225,-155.6389608,0.00024877,2]
[345580776,1734369042234,-49082.87289589,0.00024878,10]
[345580777,1734369042244,-150.0,0.00024879,2]
[345580778,1734369042253,-150.0,0.0002488,2]
[345580779,1734369042262,-222.026907,0.00024881,10]
[345580780,1734369042271,-150.0,0.00024882,2]
[345580781,1734369042280,-150.0,0.00024882,2]
[345580782,1734369042289,-222.026907,0.00024882,10]
[345580783,1734369042299,-16812.66198183,0.00024883,10]
[345580784,1734369042307,-150.0,0.00024883,2]
[345580785,1734369042316,-222.026907,0.00024885,10]
[345580786,1734369042326,-150.0,0.00024886,2]
[345580787,1734369042335,-16812.66198183,0.00024886,10]
[345580788,1734369042344,-2390.97052718,0.00024886,10]
[345580789,1734369042353,-3263.63287108,0.00024887,10]
[345580790,1734369042362,-155.6389608,0.00024888,2]
[345580791,1734369042371,-1500.0,0.00024888,2]
[345580792,1734369042380,-3263.63287108,0.00024889,10]
[345580793,1734369042389,-200.0,0.00024889,10]
[345580794,1734369042398,-153.0,0.0002489,2]
[345580795,1734369042408,-153.0,0.0002489,2]
[345580796,1734369042417,-153.0,0.0002489,2]
[345580797,1734369042426,-153.0,0.00024891,2]
[345580798,1734369042434,-153.0,0.00024891,2]
[345580799,1734369042443,-153.0,0.00024891,2]
[345580800,1734369042452,-153.0,0.00024891,2]
[345580801,1734369042462,-153.0,0.00024891,2]
[345580802,1734369042471,-153.0,0.00024891,2]
[345580803,1734369042480,-153.0,0.00024891,2]
[345580804,1734369042489,-166.01390348,0.00024891,2]
[345580805,1734369042504,-4009.29051648,0.00024893,10]
[345580806,1734369042514,-153.0,0.00024894,2]
[345580807,1734369042524,-153.0,0.00024894,2]
[345580808,1734369042533,-153.0,0.00024894,2]
[345580809,1734369042543,-276.301507,0.00024894,2]
[345580810,1734369042552,-153.0,0.00024895,2]
[345580811,1734369042561,-153.0,0.00024895,2]
[345580812,1734369042570,-153.0,0.00024895,2]
[345580813,1734369042579,-276.30150695,0.00024895,2]
[345580814,1734369042587,-166.01390347,0.00024896,2]
[345580815,1734369042596,-276.30150695,0.00024896,2]
[345580816,1734369042606,-150.0,0.00024896,2]
[345580817,1734369042615,-200.0,0.00024896,10]
[345580818,1734369042624,-276.30150695,0.00024897,2]
[345580819,1734369042633,-151.129053,0.00024897,4]
[345580820,1734369042642,-157.709209,0.00024897,4]
[345580821,1734369042651,-4184.02,0.00024897,4]
[345580822,1734369042660,-630.12,0.00024897,4]
[345580823,1734369042669,-500.0,0.00024897,4]
[345580824,1734369042678,-500.0,0.00024897,4]
[345580825,1734369042688,-500.0,0.00024897,4]
[345580826,1734369042697,-500.0,0.00024897,4]
[345580827,1734369042706,-500.0,0.00024897,4]
[345580828,1734369042715,-1669.18,0.00024897,4]
[345580829,1734369042724,-500.0,0.00024897,4]
[345580830,1734369042733,-168.62,0.00024898,4]
[345580831,1734369042744,-439.43,0.00024898,4]
[345580832,1734369042753,-3791.73,0.00024898,4]